{"text_format":"1","workbook":"xlsx","n_sheets":5,"sheets":["Anwendung","CO2-Faktoren für EGT","Alph. Aufstellung der Res.","beispiel_UBA","Pivot"],"not_rendered":{"charts":6,"images":8,"macros":1,"external_links":0,"defined_names":5,"comments":0,"pivot_tables":6},"unopened":[],"bounds":{"document_bytes":16777216,"sheet_cells":100000,"rows_first":2000,"rows_last":500,"rows_between":2000,"halvings":0,"cell_chars":16384,"cell_head_chars":4096},"cells_cut":0,"cells_raw":0,"read":"whole","date_system":"1900"}

{"sheet":"Anwendung","index":0,"n_rows":22,"n_cols":24,"rows_kept":22,"cut":false,"hidden":false,"merged":[]}
[]
["Prozess","Ressource","Menge / Verbrauch","Einheit","Emissionsfaktor (\"Einheit\" CO2e pro Einheit)","\"Einheit\"","Treibhausggasemission (CO2e in kg)","Oberkategorie Summe","Anteile","Quelle","V: Energieträger","V: Menge / Verbrauch","V: Einheit","V: Emissionsfaktor (\"Einheit\" CO2e pro Einheit)","V: \"Einheit\"","V: Treibhausggasemission (CO2e in kg)","V: Oberkategorie Summe","V: Anteile","Quelle","Hilfsspalte 1","Hilfsspalte 2","Hilfsspalte 3","Differenz","Hilfsspalte Differenz"]
["Gesamt",null,null,null,null,null,0,null,null,null,null,null,null,null,null,0]
[]
[]
[]
[]
[]
[]
[]
["Stand"]
["07.05.2024"]
["Version 4"]
[]
["Autor"]
["Malte Dietze"]
["Technische Universität Hamburg"]
["Manufacturing Innovations Network"]
["E-Mail: malte.dietze@tuhh.de; malte.dietze@gmx.de"]
[]
["Copyright:"]
["Malte Dietze"]

{"sheet":"CO2-Faktoren für EGT","index":1,"n_rows":65,"n_cols":5,"rows_kept":65,"cut":false,"hidden":false,"merged":[]}
["CO2-Faktoren für Energieträger"]
["Für die Berechnung von CO2-Emissionen je Energieträger sind die in untenstehender Tabelle abgebildeten Faktoren"]
["bindend. Die Faktoren sind im Einsparkonzept für alle Energieträger hinterlegt, es erfolgt eine automatische Berechnung"]
["der CO2-Emissionen."]
[]
["Die CO2-Faktoren für die fossilen Brennstoffe entsprechen den Werten der \"Tabellarischen Aufstellung der abgeleiteten"]
["Emissionsfaktoren für CO2: Energie & Industrieprozesse\" des Umweltbundesamts (UBA) vom 15.04.2020. Die Werte für"]
["biogene Energieträger sind aus der UBA-Studie \"Emissionsbilanz erneuerbarer Energieträger\" vom November 2019"]
["abgeleitet. Es handelt sich um CO2-Äquivalente der direkten Emissionen und der notwendigen Vorketten."]
["Für Biomasse Holz wird der Mittelwert der dort aufgeführten Holzarten verwendet."]
[]
["Der CO2-Faktor für „Strom (Energieträgerwechsel zu Strom)“ beruht auf einer Modellrechnung eines BMWK-Projektes"]
["bezogen auf das Jahr 2028. Es wird angenommen, dass die CO2-Intensität des deutschen Stromsektors in den kommenden"]
["Jahren insbesondere auf Grund des Kohleausstiegs und des Ausbaus erneuerbarer Energien voraussichtlich deutlich"]
["abnehmen wird."]
["Für die Bewertung von Effizienzmaßnahmen im Bereich elektrischer Energie in Bezug auf CO2 wird als CO2-Faktor für"]
["„Strom (Effizienzmaßnahme)“ der CO2-Faktor des Strominlandsverbrauchs von 2021 herangezogen. Dies soll eine"]
["ungünstige Bewertung von sinnvollen Maßnahmen verhindern und der Wichtigkeit der Einsparung von elektrischer"]
["Energie Rechnung tragen."]
[]
["Sofern bereits erneuerbare Energien zur Bereitstellung von Wärme oder Strom eingesetzt werden, ist es zulässig, für den"]
["Referenz- bzw. Ist-Zustand den Faktor für „Erdgas“ bzw. „Strom (Effizienzmaßnahme)“ zu verwenden."]
[]
["Die Anpassung der CO2-Faktoren erfolgt regelmäßig auf Basis der neuesten verfügbaren Daten"]
[]
["Es ist zu beachten, dass sich die Faktoren auf den Heizwert der Energieträger beziehen. Sollte der Energieverbrauch"]
["brennwertbezogen vorliegen, ist dieser zunächst mittels Tabelle 3 umzurechnen."]
[]
[]
[]
[]
[]
[]
[]
[]
[]
[]
[]
[]
["Tabelle 2: CO2-Faktoren der Energieträger"]
["Energieträger","Einheit","CO2-Faktor","Quelle, sofern abweichend","Anmerkung"]
["Altöl","kgCO2/kWh",0.28799999999999998]
["Biodiesel","kgCO2/kWh",7.0000000000000007E-2,null,"Nur bei Erzeugung auf dem Betriebsgelände"]
["Bioethanol","kgCO2/kWh",4.2999999999999997E-2,null,"Abschnitt „Definition von Wasserstoff (Erneuerbare Quelle) beachten"]
["Biogas","kgCO2/kWh",0.152,null,"Abschnitt „Definition von Wasserstoff (Erneuerbare Quelle) beachten"]
["Biomasse Holz, trocken <20% Restfeuchte","kgCO2/kWh",2.7E-2,null,"Anforderungen an Biomasseanlagen und Biomasse aus Merkblatt Modul 2 beachten"]
["Braunkohle","kgCO2/kWh",0.38300000000000001]
["Diesel, LKW (7,5t) - Massengut","kgCO2/km",1.47E-4,"http://www.co2-sachverstaendiger.de/pdf/DSLV-Leitfaden%20Berechnung%20von%20THG-Emissionen%20in%20Spedition%20und%20Logistik.pdf"]
["Deponiegas","kgCO2/kWh",0.05]
["Erdgas","kgCO2/kWh",0.20100000000000001]
["Flüssiggas","kgCO2/kWh",0.23899999999999999]
["Heizöl leicht / Diesel","kgCO2/kWh",0.26600000000000001]
["Heizöl schwer","kgCO2/kWh",0.28799999999999998]
["Klärgas","kgCO2/kWh",0.05]
["Klärschlamm","kgCO2/kWh",0.01]
["Nah- / Fernwärme","kgCO2/kWh",0.28000000000000003]
["Pellets","kgCO2/kWh",3.5999999999999997E-2]
["Rohbenzin","kgCO2/kWh",0.26400000000000001]
["Steinkohle","kgCO2/kWh",0.33500000000000002]
["Strom (Effizienzmaßnahme)","kgCO2/kWh",0.435,null,"CO2-Faktor für die Bilanzierung von Einsparungen an elektrischer Energie"]
["Strom (Energieträgerwechsel zu Strom)","kgCO2/kWh",0.107,null,"CO2-Faktor für die Bilanzierung von Mehrverbräuchen an elektrischer Energie beim Wechsel zu elektrischer Energie"]
["Strom (Erneuerbare Quelle)","kgCO2/kWh",0,null,"Abschnitt „Definition von Strom (erneuerbare Quelle)“ beachten"]
["Strommix, Deutschland","kgCO2/kWh",0.33400000000000002,"https://app.electricitymaps.com/zone/DE"]
["Wasserstoff","kgCO2/kWh",0.38500000000000001]
["Wasserstoff (Erneuerbare Quelle)","kgCO2/kWh",10,null,"Abschnitt „Definition von Wasserstoff (Erneuerbare Quelle) beachten"]

{"sheet":"Alph. Aufstellung der Res.","index":2,"n_rows":193,"n_cols":9,"rows_kept":193,"cut":false,"hidden":false,"merged":[]}
["Alphabetische Aufstellung der Ressourcen"]
[null,null,null,null,null,null,null,null,"https://www.bafa.de/SharedDocs/Downloads/DE/Energie/eew_infoblatt_co2_faktoren_2024.pdf?__blob=publicationFile&v=2"]
["Tabelle 5: Alphabetische Aufstellung der Ressourcen"]
["Bezeichnung","Alternative Bezeichnungen","Äquivalent zu","CO2-Faktor\nin kgCO2-\näquiv/ kg","Einheit CO2-Faktor","Kategorie","Quelle sofern abweichend"]
["1,2-Dichlorethan","Chloräther","",0.97,"kgCO2/kg","OV"]
["1,3-Butadien","Vinylethylen","",1.2,"kgCO2/kg","OV"]
["1-Butanol","n-Butanol","",3.26,"kgCO2/kg","OV"]
["Acetylen","Ethin","",2.98,"kgCO2/kg","OV"]
["Adipinsäure","Adipinsäure","",13.2,"kgCO2/kg","OV"]
["Altpapierstoff","","",0.86,"kgCO2/kg","A"]
["Altöl","","",0.28999999999999998,"kgCO2/kg","OV"]
["Aluminium, Gusslegierung","","",5.71,"kgCO2/kg","Me"]
["Aluminium, Knetlegierung","","",13.92,"kgCO2/kg","Me"]
["Aluminium, primär","","",10,"kgCO2/kg","Me"]
["Aluminium, sekundär","","",0.52,"kgCO2/kg","Me"]
["Alumiumhydroxid(Al(OH)3)","","",1.01,"kgCO2/kg","Mi"]
["Ameisensäure(CH₂O₂)","Methansäure","",2.29,"kgCO2/kg","OV"]
["Amin(NMe3)","Amin","",2.37,"kgCO2/kg","AV"]
["Ammoniak(NH3)","Azan","",2.73,"kgCO2/kg","AV"]
["Anilin(C6H7N )","Benzenamin","",3.35,"kgCO2/kg","OV"]
["Antimon(Sb)","Antimon","",8.52,"kgCO2/kg","Me"]
["Argon(Ar)","Argon","",1.37,"kgCO2/kg","AV"]
["Bariumsulfat(Ba(SO4))","Barit","",{"$f":"9.63*10^-2","v":9.6300000000000011E-2},"kgCO2/kg","Mi"]
["Bariumcarbonat(BaCO3)","Witherit","",1.1499999999999999,"kgCO2/kg","Mi"]
["Baumwollgewebe","","",11.1,"kgCO2/kg","A"]
["Bauxit","","Gibbsit",{"$f":"2.69*10^-2","v":2.69E-2},"kgCO2/kg","Mi"]
["Bentonit","","",{"$f":"4.72*10^-2","v":4.7199999999999999E-2},"kgCO2/kg","Mi"]
["Benzen(C6H6)","Benzol","",1.95,"kgCO2/kg","OV"]
["Beton","","",{"$f":"6.12*10^-2","v":6.1200000000000004E-2},"kgCO2/kg","Mi"]
["Bimsstein","Bims\nPumis","",{"$f":"8.23*10^-3","v":8.2300000000000012E-3},"kgCO2/kg","Mi"]
["Bitumen","","",0.33,"kgCO2/kg","OV"]
["Blei(Pb)","","",1.36,"kgCO2/kg","Me"]
["Blei, sekundär(Pb)","","",0.5,"kgCO2/kg","Me"]
["Borate","","Boracit",1.52,"kgCO2/kg","Mi"]
["Borsäure(H3BO3)","Orthoborsäure","",0.98,"kgCO2/kg","AV"]
["Bronze","","Aluminiumbronze",7.03,"kgCO2/kg","Me"]
["Butene(C4H8)","Butylene","But-1-en",1.62,"kgCO2/kg","OV"]
["Calciumcarbonat(CaCO3)","Kalk","",{"$f":"5.77*10^-3","v":5.77E-3},"kgCO2/kg","Mi"]
["Calciumhydroxid(Ca(OH)2)","Calciumdihydroxid","",0.89,"kgCO2/kg","Mi"]
["Calciumfluorid(CaF2)","Flussspat","",0.21,"kgCO2/kg","Mi"]
["Calciumsulfat(CaSO4)","Gips","",{"$f":"7.51*10^-3","v":7.5100000000000002E-3},"kgCO2/kg","Mi"]
["Chlor(Cl)","","",0.59,"kgCO2/kg","AV"]
["Chlormethan(CH3Cl)","Methylchlorid","",3.18,"kgCO2/kg","OV"]
["Chrom(Cr)","","",27.35,"kgCO2/kg","Me"]
["Chromit(FeCr2O4)","Chromerze","",{"$f":"4.65*10^-2","v":4.6500000000000007E-2},"kgCO2/kg","Mi"]
["Cyclohexan(C6H12)","Hexahydrobenzol","",2.4900000000000002,"kgCO2/kg","OV"]
["Dichlormethan(CH2Cl2)","Methylenchlorid","",3.43,"kgCO2/kg","OV"]
["Dolomit(CaMg(CO3)2)","Dolomitspat","",7.0000000000000007E-2,"kgCO2/kg","Mi"]
["Edelstahlblech","","",5.18,"kgCO2/kg","Me"]
["Eisen(Fe)","","",1.76,"kgCO2/kg","Me"]
["Eisenerz","Magnetit","Pyrit",{"$f":"8.49*10^-3","v":8.490000000000001E-3},"kgCO2/kg","Mi"]
["Eisenerzkonzentrat","","",{"$f":"8.83*10^-2","v":8.8300000000000003E-2},"kgCO2/kg","Mi"]
["Epoxidharz","Kunstharz","",4.78,"kgCO2/kg","K"]
["Essigsäure(C2H4O2)","Ethansäure","",1.63,"kgCO2/kg","OV"]
["Ethan(C2H6)","","",0.89,"kgCO2/kg","OV"]
["Ethylbenzol(C8H10)","Ethylbenzen","",2.27,"kgCO2/kg","OV"]
["Ethen(C2H4)","Ethylen","",1.46,"kgCO2/kg","OV"]
["Ethylenoxid(C2H4O)","Oxiran","",1.85,"kgCO2/kg","OV"]
["Fluorpolymere(PTFE)","","",120.4,"kgCO2/kg","K"]
["Formaldehyd(CH2O)","Methanal","Formalin",0.92,"kgCO2/kg","OV"]
["Gallium(Ga)","","",170.02,"kgCO2/kg","Me"]
["Gesteinsmehl","","Schluff",{"$f":"6.35*10^-2","v":6.3500000000000001E-2},"kgCO2/kg","Mi"]
["GFK (Glasfaserverstärkte Kunststoffe)","","",8.5500000000000007,"kgCO2/kg","K"]
["Glas (Behälterglas/Flachglas)","","",1,"kgCO2/kg","Mi"]
["Glasfasern","","",2.42,"kgCO2/kg","Mi"]
["Glaswolle","","",2.66,"kgCO2/kg","Mi"]
["Gold(Au)","","",47790.29,"kgCO2/kg","Me"]
["Graphit","","",{"$f":"6.92*10^-2","v":6.9199999999999998E-2},"kgCO2/kg","Mi"]
["Helium(He)","","",8.56,"kgCO2/kg","AV"]
["Holz, unbehandelt, trocken","","",0.12,"kgCO2/kg","A"]
["Holzstoff","Holzschliff","",1.55,"kgCO2/kg","A"]
["Hüttensand","Schlackensand","",0.1,"kgCO2/kg","Mi"]
["Hydrauliköl","","",0.02,"kgCO2/kg","OV"]
["Hydroxybenzol(C6H6O)","Phenol","",2.95,"kgCO2/kg","OV"]
["Ilmenit(FeTiO3)","Menaccanit","",0.13,"kgCO2/kg","Mi"]
["Indium(In)","","",117.52,"kgCO2/kg","Me"]
["Isopropylbenzol(C9H12)","Cumol","",2.3199999999999998,"kgCO2/kg","OV"]
["Kalisalz","Sylvin","Kieserit",{"$f":"2.68*10^-2","v":2.6800000000000001E-2},"kgCO2/kg","Mi"]
["Kaolin","Porzellanerde","",0.21,"kgCO2/kg","Mi"]
["Kies(Baukies)","","",{"$f":"4.85*10^-3","v":4.8500000000000001E-3},"kgCO2/kg","Mi"]
["Kieselgur","Bergmehl","",0.44,"kgCO2/kg","Mi"]
["Kobalt(Co)","","",47.62,"kgCO2/kg","Me"]
["Kohlenstofffaserverstärkte Kunststoffe","","",83.64,"kgCO2/kg","K"]
["Koks","","",0.75,"kgCO2/kg","AV"]
["Kryolith(Na2NaAlF6)","Eisstein","",2.56,"kgCO2/kg","Mi"]
["Kupfer, primär(Cu)","","",6.66,"kgCO2/kg","Me"]
["Kupfer, sekundär(Cu)","","",1.73,"kgCO2/kg","Me"]
["Kupferkonzentrate","","",1.1399999999999999,"kgCO2/kg","Mi"]
["Kühlschmierstoff, Ölhaltig",null,null,3.7,"kgCO2/kg",null,"https://www.nc-fertigung.de/der-kss-fuer-prozesskosteneinsparung-und-nachhaltigkeit"]
["Kühlschmierstoff, Ölfrei",null,null,2.2999999999999998,"kgCO2/kg",null,"https://www.nc-fertigung.de/der-kss-fuer-prozesskosteneinsparung-und-nachhaltigkeit"]
["Lack Lösemittelbasis","","",1.99,"kgCO2/kg","OV"]
["Leim / Klebstoffe","","",5.59,"kgCO2/kg","OV"]
["Lithium(Li)","","",79.290000000000006,"kgCO2/kg","Me"]
["Magnesium(Mg)","","",28.81,"kgCO2/kg","Me"]
["Magnesiumsulfat(MgSO4)","Bittersalz","",1.04,"kgCO2/kg","Mi"]
["Mangan(Mn)","","",5.48,"kgCO2/kg","Me"]
["Manganerz","Braunstein","",{"$f":"8.69*10^-2","v":8.6899999999999991E-2},"kgCO2/kg","Mi"]
["Messing","","",5.55,"kgCO2/kg","Me"]
["Methan(CH4)","Erdgas","",0.66,"kgCO2/kg","OV"]
["Methan, biogen (CH4)","Biogas","",0.86,"kgCO2/kg","OV"]
["Methanol(CH3OH)","Methylalkohol","",0.66,"kgCO2/kg","OV"]
["Molybdän(Mo)","","",17.07,"kgCO2/kg","Me"]
["Molybdänerz","Molybdänit","Wulfenit",7.24,"kgCO2/kg","Mi"]
["Naphtha","Rohbenzin","",0.37,"kgCO2/kg","OV"]
["Natriumcarbonat(Na2CO3)","Soda","",1.25,"kgCO2/kg","Mi"]
["Natriumhydroxid(NaOH)","Natronlauge","",1.28,"kgCO2/kg","AV"]
["Naturkautschuk","","",2.71,"kgCO2/kg","K"]
["Nickel(Ni)","","",19.89,"kgCO2/kg","Me"]
["Nickel, sekundär(Ni)","","",1.04,"kgCO2/kg","Me"]
["Nickelerz","","",0.98,"kgCO2/kg","Mi"]
["Niobkonzentrate","","",0.18,"kgCO2/kg","Mi"]
["Palladium(Pd)","","",11227.61,"kgCO2/kg","Me"]
["Papier","","",1.38,"kgCO2/kg","A"]
["Pappe Kartonage","","",0.62,"kgCO2/kg","A"]
["Perlit (Gestein)","Obsidian","",{"$f":"4.14*10^-2","v":4.1399999999999999E-2},"kgCO2/kg","Mi"]
["Polyethylenterephthalat","PET","",2.75,"kgCO2/kg","K"]
["Pflanzliche Öle","","",1.62,"kgCO2/kg","OV"]
["Phosphate","","Dihydrogen-\nphosphate",0.18,"kgCO2/kg","Mi"]
["Phosphor, weiß(P)","","",14.32,"kgCO2/kg","AV"]
["Phthalsäureanhydrid(C8H4O3)","2-Benzofuran-1,3-dion","",2.61,"kgCO2/kg","OV"]
["Platin(Pt)","","",69410.02,"kgCO2/kg","Me"]
["Polyethylen, hohe Dichte","HDPE","",1.92,"kgCO2/kg","K"]
["Polyethylen, geringe Dichte","LDPE","",1.96,"kgCO2/kg","K"]
["Polypropylen","PP","",1.9,"kgCO2/kg","K"]
["Polystyrol","PS","",3.78,"kgCO2/kg","K"]
["Polystyrol, expandiertes","EPS","",9.6199999999999992,"kgCO2/kg","K"]
["Polyurethane","PUR","",5.05,"kgCO2/kg","K"]
["Propan(C3H8)","","",0.86,"kgCO2/kg","OV"]
["Propen(C3H6)","","",1.5,"kgCO2/kg","OV"]
["Propylenglycol(C3H8O2)","1,2-Propandiol","",3.68,"kgCO2/kg","OV"]
["Propylenoxid(C3H6O)","2-Methyloxiran","",4.0999999999999996,"kgCO2/kg","OV"]
["PVC (Polyvinylchlorid)","Poly(1-chlorethylen)","",1.9,"kgCO2/kg","K"]
["p-Xylol","1,4-Dimethylbenzol","o-Xylol",1.73,"kgCO2/kg","OV"]
["Quarz, Quarzite","Tiefquarz\nα-Quarz","",0.24,"kgCO2/kg","Mi"]
["Quecksilber(Hg)","","",11.55,"kgCO2/kg","Me"]
["Recycling-Kunststoff","","",1.1599999999999999,"kgCO2/kg","K"]
["Rhodium(Rh)","","",80426.880000000005,"kgCO2/kg","Me"]
["Ruß","","",1.87,"kgCO2/kg","AV"]
["Salzsäure(HCl)","Chlorwasserstoffsäure","",0.57999999999999996,"kgCO2/kg","AV"]
["Sand (Bausand)","","",{"$f":"4.85*10^-3","v":4.8500000000000001E-3},"kgCO2/kg","Mi"]
["Sauerstoff, flüssig(O2)","","",0.55000000000000004,"kgCO2/kg","AV"]
["Schamottstein","Schamott","",0.87,"kgCO2/kg","Mi"]
["Schiefer","","",{"$f":"8.6*10^-3","v":8.6E-3},"kgCO2/kg","Mi"]
["Schmieröl","","",1.22,"kgCO2/kg","OV"]
["Schmirgel(Al2O3)","Korund","",{"$f":"2.9*10^-2","v":2.8999999999999998E-2},"kgCO2/kg","Mi"]
["Schwefel(S)","","",0.13,"kgCO2/kg","AV"]
["Schwefelsäure(H2SO4)","Schwefel(VI)-säure","schwefelige",0.11,"kgCO2/kg","AV"]
["Selen(Se)","","",3.41,"kgCO2/kg","Me"]
["Siedesalz","","",{"$f":"3.92*10^-2","v":3.9199999999999999E-2},"kgCO2/kg","Mi"]
["Silber(Ag)","","",449.39,"kgCO2/kg","Me"]
["Silicate","Glimmer","",77.61,"kgCO2/kg","Mi"]
["Siliciumdioxid","Quarzsand","",{"$f":"4.34*10^-2","v":4.3400000000000001E-2},"kgCO2/kg","Mi"]
["Silizium(Si)","","",77.61,"kgCO2/kg","AV"]
["Sillimanit","Alumosilikat","",{"$f":"2.9*10^-2","v":2.8999999999999998E-2},"kgCO2/kg","Mi"]
["Spanplatte","","",0.47,"kgCO2/kg","A"]
["Splitt","","",{"$f":"2.3*10^-3","v":2.3E-3},"kgCO2/kg","Mi"]
["Stahl (Elektrostahl)","","",0.55000000000000004,"kgCO2/kg","Me"]
["Stahl (Konverterstahl)","","",2.1800000000000002,"kgCO2/kg","Me"]
["Stahl, sekundär","","",{"$f":"3.4*10^-2","v":3.4000000000000002E-2},"kgCO2/kg","Me"]
["Stärke(C6H10O5)","D-Glucose","",1.0900000000000001,"kgCO2/kg","OV"]
["Salz(NaCl)","","",0.27,"kgCO2/kg","Mi"]
["Steinwolle","","",1.32,"kgCO2/kg","Mi"]
["Stickstoff, flüssig(N2)","","",0.22,"kgCO2/kg","AV"]
["Stroh/Heu","","",{"$f":"9.02*10^-2","v":9.0200000000000002E-2},"kgCO2/kg","A"]
["Styrol(C8H8)","Styren","",3.29,"kgCO2/kg","OV"]
["Talk","Steatit\nSpeckstein","",{"$f":"2.94*10^-2","v":2.9399999999999999E-2},"kgCO2/kg","Mi"]
["Tantal(Ta)","","",166.03,"kgCO2/kg","Me"]
["Tantalkonzentrate","","",0.18,"kgCO2/kg","Mi"]
["Thallium(Tl)","","",331.81,"kgCO2/kg","Me"]
["Tiermehl","","",{"$f":"2.39*10^-2","v":2.3900000000000001E-2},"kgCO2/kg","A"]
["Titan(Ti)","","",50.86,"kgCO2/kg","Me"]
["Toluol(C7H8)","Retinaphtha","",1.59,"kgCO2/kg","OV"]
["Torf (nur Einsparung)","","",{"$f":"1.4*10^-2","v":1.3999999999999999E-2},"kgCO2/kg","A"]
["Trass","Puzzolan","",{"$f":"2.92*10^-2","v":2.92E-2},"kgCO2/kg","Mi"]
["VE-Wasser / technisches Wasser(H2O)","","",{"$f":"4.4*10^-4","v":4.4000000000000007E-4},"kgCO2/kg","AV"]
["Vermikulit","","",0.12,"kgCO2/kg","Mi"]
["Vinylchlorid(C2H3Cl)","Chlorethen","",1.53,"kgCO2/kg","K"]
["Wasser(H2O)","","",{"$f":"3.3*10^-4","v":3.3E-4},"kgCO2/kg","AV"]
["Wasserglas","Natronwasserglas","",0.77,"kgCO2/kg","Mi"]
["Wasserstoff(H2)","","",12.82,"kgCO2/kg","AV"]
["Wasserstoff (Erneuerbare Quelle)12","","",0,"kgCO2/kg","AV"]
["Wasserstoffperoxid(H2O2)","","",1.1299999999999999,"kgCO2/kg","AV"]
["Weitere Inertgase","","Neon",149.58000000000001,"kgCO2/kg","AV"]
["Wismut(Bi)","","",22.1,"kgCO2/kg","Me"]
["Wolframerz","Wolframit","",5.53,"kgCO2/kg","Mi"]
["Zellstoff (Sulfatzellstoff)","","",0.35,"kgCO2/kg","A"]
["Zellstoff (Sulfitzellstoff)","","",1.0900000000000001,"kgCO2/kg","A"]
["Zement","","",0.79,"kgCO2/kg","Mi"]
["Zementklinker","","",0.94,"kgCO2/kg","Mi"]
["Zink(Zn)","","",2.72,"kgCO2/kg","Me"]
["Zinkerze","Zinksulfid","",0.51,"kgCO2/kg","Mi"]
["Zinn(Sn)","","",10.15,"kgCO2/kg","Me"]
["Zucker","","Glucose",0.55000000000000004,"kgCO2/kg","OV"]

{"sheet":"beispiel_UBA","index":3,"n_rows":65,"n_cols":7,"rows_kept":65,"cut":false,"hidden":true,"merged":[[61,0,61,5],[62,0,62,5],[63,0,63,5],[64,0,64,5],[55,0,55,5],[56,0,56,5],[57,0,57,5],[58,0,58,5],[59,0,59,5],[60,0,60,5],[54,0,54,5],[5,0,5,5],[50,0,50,5],[51,0,51,5],[52,0,52,5],[53,0,53,5]]}
["Berechnen Sie die CO2e-Emissionen an Ihrem Standort (Scope 1 und 2 incl. Vorketten im Scope 3)",null,null,"  (CO2e steht dabei für CO2-Äquivalente)"]
[]
["Sie möchten einen ersten Überblick über die Treibhausgasemissionen Ihres Betriebs am Standort in einem Jahr? -->  Tragen Sie unten die Jahresverbrauchswerte der von Ihnen genutzen Energieträger ein."]
["Achten Sie dabei auf die korrekte Einheit. Die Verbrauchsdaten finden Sie in den Rechnungen Ihres Energieversorgers, bzw. des jeweiligen Dienstleisters/Lieferanten."]
["Möchten Sie weitere Emissionsquellen aufnehmen, z. B. eingekaufte Güter und Dienstleistungen, erfassen Sie auch Teile Ihrer Scope 3 Emissionen. Dafür bietet sich ein CO2-Rechner an, welcher diese systematisch erfassen kann. "]
["Nutzen Sie dafür beispielsweise den kostenfreien Ecocockpit-Rechner und unsere Handlungshilfe Klimastrategie, die Sie Schritt für Schritt durch die Erstellung einer betrieblichen Klimabilanz führt. "]
[]
[" Emissionsquelle","Energieträger","Menge / Verbrauch","Einheit","Emissionsfaktor (t CO2e pro Einheit)","Treibhausggasemission (CO2e in t)","Quelle"]
["Mobilität"]
[null,"Erdgas, CNG ",500,"Liter",5.4100000000000003E-4,{"$f":"IF(C10=\"(bitte eintragen)\",0,C10*E10)","v":0.27050000000000002},"DEFRA 2023, Fuels, Gasous Fuels, CNG, litres"]
[null,"Erdgas, CNG ","(bitte eintragen)","kWh",3.39E-4,{"$f":"IF(C11=\"(bitte eintragen)\",0,C11*E11)","v":0},"UBA 2022: Emissionsbilanz erneuerbarer Energieträger"]
[null,"Wasserstoff","(bitte eintragen)","kg",7.4989999999999996E-3,{"$f":"IF(C12=\"(bitte eintragen)\",0,C12*E12)","v":0},"SRU: Wasserstoff im Klimaschutz"]
[null,"Elektro, Strommix Deutschland","(bitte eintragen)","kWh",4.8500000000000003E-4,{"$f":"IF(C13=\"(bitte eintragen)\",0,C13*E13)","v":0},"UBA 2022: Emissionsbilanz erneuerbarer Energieträger"]
[null,"Benzin","(bitte eintragen)","Liter",3.0300000000000001E-3,0,"UBA 2022: Emissionsbilanz erneuerbarer Energieträger"]
[null,"Diesel",25,"Liter",3.4099999999999998E-3,8.5249999999999992E-2,"UBA 2022: Emissionsbilanz erneuerbarer Energieträger"]
["Direkte Kältemittelemissionen (Leakagen)"]
[null,"R22","(bitte eintragen)","kg",1.8859999999999999,{"$f":"IF(C17=\"(bitte eintragen)\",0,C17*E17)","v":0},"Ökoinstitut Berlin + IFEU i. a. d. UBA 2011, Carbon Footprint - Teilgutachten \"Monitoring für den CO2-Ausstoß in der Logistikkette\", Tabelle 6 S. 35"]
[null,"R134A","(bitte eintragen)","kg",1.5329999999999999,0,"Ökoinstitut Berlin + IFEU i. a. d. UBA 2011, Carbon Footprint - Teilgutachten \"Monitoring für den CO2-Ausstoß in der Logistikkette\", Tabelle 6 S. 35"]
[null,"R404A","(bitte eintragen)","kg",4.0250000000000004,0,"Ökoinstitut Berlin + IFEU i. a. d. UBA 2011, Carbon Footprint - Teilgutachten \"Monitoring für den CO2-Ausstoß in der Logistikkette\", Tabelle 6 S. 35"]
[null,"R410A","(bitte eintragen)","kg",2.177,0,"Ökoinstitut Berlin + IFEU i. a. d. UBA 2011, Carbon Footprint - Teilgutachten \"Monitoring für den CO2-Ausstoß in der Logistikkette\", Tabelle 6 S. 35"]
[null,"R407C","(bitte eintragen)","kg",1.774,0,"Schweizer Bundesamt für Umwelt BAFU \"Übersicht über die wichtigsten Kältemittel\" Stand September 2020"]
[null,"R407F","(bitte eintragen)","kg",1.825,0,"Schweizer Bundesamt für Umwelt BAFU \"Übersicht über die wichtigsten Kältemittel\" Stand September 2020"]
[null,"R-600A (Isobutan)","(bitte eintragen)","kg",3.0000000000000001E-3,0,"Schweizer Bundesamt für Umwelt BAFU \"Übersicht über die wichtigsten Kältemittel\" Stand September 2020"]
[null,"R744 (CO2)","(bitte eintragen)","kg",1E-3,0,"Schweizer Bundesamt für Umwelt BAFU \"Übersicht über die wichtigsten Kältemittel\" Stand September 2020"]
[null,"R717 (NH3)","(bitte eintragen)","kg",0,0,"Schweizer Bundesamt für Umwelt BAFU \"Übersicht über die wichtigsten Kältemittel\" Stand September 2020"]
["Wärme"]
[null,"Erdgas","(bitte eintragen)","m³",2.3019999999999998E-3,{"$f":"IF(C27=\"(bitte eintragen)\",0,C27*E27)","v":0},"UBA/DEHST: Leitfaden zur Erstellung von Überwachungsplänen und Emissionsberichterstattung"]
[null,"Erdgas","(bitte eintragen)","kWh",2.4399999999999999E-4,0,"UBA 2022: Emissionsbilanz erneuerbarer Energieträger"]
[null,"Biogas Mix","(bitte eintragen)","m³",7.85E-4,0,"UBA 2022: Emissionsbilanz erneuerbarer Energieträger"]
[null,"Biogas Mix","(bitte eintragen)","kWh",1.5699999999999999E-4,0,"UBA 2022: Emissionsbilanz erneuerbarer Energieträger"]
[null,"Heizöl","(bitte eintragen)","Liter",3.042E-3,0,"UBA 2022: Emissionsbilanz erneuerbarer Energieträger"]
[null,"Holzpellets","(bitte eintragen)","t",5.2789999999999997E-2,0,"UBA 2022: Emissionsbilanz erneuerbarer Energieträger"]
[null,"Hackschnitzel","(bitte eintragen)","t",6.5775E-2,0,"UBA 2022: Emissionsbilanz erneuerbarer Energieträger"]
[null,"Stückholz","(bitte eintragen)","t",0.101897,0,"UBA 2022: Emissionsbilanz erneuerbarer Energieträger"]
[null,"Fernwärme","(bitte eintragen)","kWh",2.9500000000000001E-4,0,"UBA 2022: Emissionsbilanz erneuerbarer Energieträger"]
[null,"Flüssiggas","(bitte eintragen)","Liter",3.052E-3,0,"BAFA 2021 - Informationsblatt CO2-Faktoren "]
[null,"Braunkohle","(bitte eintragen)","kWh",4.4200000000000001E-4,0,"UBA 2022: Emissionsbilanz erneuerbarer Energieträger"]
[null,"Steinkohle","(bitte eintragen)","kWh",4.2900000000000002E-4,0,"UBA 2022: Emissionsbilanz erneuerbarer Energieträger"]
["Strom"]
[null,"Strommix Deutschland","(bitte eintragen)","kWh",4.8500000000000003E-4,{"$f":"IF(C40=\"(bitte eintragen)\",0,C40*E40)","v":0},"UBA 2022:  Entwicklung der spezifischen Treibhausgasemissionen des deutschen Strommix"]
[null,"Strom-PV","(bitte eintragen)","kWh",5.6100000000000002E-5,0,"UBA 2022: Emissionsbilanz erneuerbarer Energieträger"]
[null,"Ökostrom-Mix","(bitte eintragen)","kWh",5.4500000000000003E-5,0,"Auf Grundlage von UBA 2022: Emissionsbilanz erneuerbarer Energieträger"]
["Gesamtsumme",null,null,null,null,{"$f":"SUM(F10:F42)","v":0.35575000000000001}]
[]
[]
["Stand"]
["September 2023"]
[]
[]
["Impressum"]
[]
["Herausgeber:"]
["Bayerisches Landesamt für Umwelt (LfU)"]
["Infozentrum UmweltWirtschaft (IZU)"]
["Bürgermeister-Ulrich-Straße 160"]
["86179 Augsburg"]
["Telefon: 0821 9071 5509"]
["E-Mail: izu@lfu.bayern.de"]
["Internet: https://www.izu.bayern.de"]
[]
["Bearbeitung:"]
["Landesagentur für Energie und Klimaschutz (LENK)"]
[]
["Copyright:"]
["Bayerisches Landesamt für Umwelt (LfU)"]

{"sheet":"Pivot","index":4,"n_rows":5,"n_cols":17,"rows_kept":5,"cut":false,"hidden":false,"merged":[]}
["Hilfsspalte 2","(Mehrere Elemente)",null,"Hilfsspalte 2","(Mehrere Elemente)",null,"Hilfsspalte 2","(Mehrere Elemente)",null,"Hilfsspalte 2","(Mehrere Elemente)",null,"Hilfsspalte 2","(Mehrere Elemente)"]
[null,null,null,null,null,null,null,null,null,null,null,null,"Hilfsspalte Differenz","(Alle)",null,"Hilfsspalte 2","(Mehrere Elemente)"]
["Zeilenbeschriftungen","Summe von Oberkategorie Summe",null,"Zeilenbeschriftungen","Summe von V: Oberkategorie Summe",null,"Zeilenbeschriftungen","Summe von Treibhausggasemission (CO2e in kg)",null,"Zeilenbeschriftungen","Summe von V: Treibhausggasemission (CO2e in kg)"]
["Gesamtergebnis",null,null,"Gesamtergebnis",null,null,"Gesamtergebnis",null,null,"Gesamtergebnis",null,null,"Zeilenbeschriftungen","Summe von Differenz",null,"Zeilenbeschriftungen","Summe von Differenz"]
[null,null,null,null,null,null,null,null,null,null,null,null,"Gesamtergebnis",null,null,"Gesamtergebnis"]